[Event "Torneo Nuevo Centro. Jornada 8"]
[Site "Chess.com"]
[Date "2020.08.07"]
[Round "6"]
[White "Rodriguez Rodriguez, Joan David "]
[Black "Bercaru, Vlad Ionut"]
[Result "1/2-1/2"]
[WhiteElo "1717"]
[BlackElo "1830"]
[TimeControl "180+2"]
[EndTime "11:38:28 PDT"]
[Termination "Tablas por repeticiÃ³n"]

1. d4 {[%clk 0:03:01.9]} 1... Nf6 {[%clk 0:02:56.1]} 2. c4 {[%clk 0:03:02.7]}
2... g6 {[%clk 0:02:56.9]} 3. Nc3 {[%clk 0:03:03.1]} 3... Bg7 {[%clk 0:02:58.2]}
4. e4 {[%clk 0:03:04.6]} 4... d6 {[%clk 0:02:58.9]} 5. Nf3 {[%clk 0:03:05.8]}
5... O-O {[%clk 0:02:59]} 6. Be2 {[%clk 0:03:06.7]} 6... e5 {[%clk 0:02:59]} 7.
dxe5 {[%clk 0:03:08.6]} 7... dxe5 {[%clk 0:02:59.2]} 8. Qxd8 {[%clk 0:03:10.5]}
8... Rxd8 {[%clk 0:03:00.1]} 9. Bg5 {[%clk 0:03:12.2]} 9... Re8 {[%clk
0:02:59.7]} 10. O-O {[%clk 0:03:12.6]} 10... c6 {[%clk 0:02:49.5]} 11. Rad1
{[%clk 0:03:12]} 11... h6 {[%clk 0:02:46]} 12. Bh4 {[%clk 0:03:11.6]} 12... Bg4
{[%clk 0:02:30.3]} 13. Rfe1 {[%clk 0:03:02.2]} 13... Na6 {[%clk 0:02:28.9]} 14.
a3 {[%clk 0:02:55.2]} 14... g5 {[%clk 0:02:16.8]} 15. Bg3 {[%clk 0:02:55.2]}
15... Nh5 {[%clk 0:02:14.7]} 16. Bd3 {[%clk 0:02:48.4]} 16... Nxg3 {[%clk
0:02:10.8]} 17. hxg3 {[%clk 0:02:42.5]} 17... Nc5 {[%clk 0:02:06.9]} 18. Bc2
{[%clk 0:02:41.6]} 18... Red8 {[%clk 0:02:02.9]} 19. b4 {[%clk 0:02:31.5]} 19...
Ne6 {[%clk 0:01:55.1]} 20. Rxd8+ {[%clk 0:02:11.7]} 20... Rxd8 {[%clk
0:01:53.4]} 21. Nh2 {[%clk 0:02:13.1]} 21... Bh5 {[%clk 0:01:49.3]} 22. g4
{[%clk 0:02:10.4]} 22... Bg6 {[%clk 0:01:49.1]} 23. Nf1 {[%clk 0:02:00.5]} 23...
Nd4 {[%clk 0:01:33.4]} 24. Rd1 {[%clk 0:01:43.8]} 24... Bf6 {[%clk 0:01:22.7]}
25. Rd2 {[%clk 0:01:31.4]} 25... Nxc2 {[%clk 0:01:10]} 26. Rxc2 {[%clk
0:01:31.4]} 26... Be7 {[%clk 0:01:07.5]} 27. c5 {[%clk 0:01:21.9]} 27... a5
{[%clk 0:01:01.6]} 28. Ne3 {[%clk 0:01:21.8]} 28... axb4 {[%clk 0:01:00.2]} 29.
axb4 {[%clk 0:01:23.7]} 29... b6 {[%clk 0:00:56.8]} 30. Na4 {[%clk 0:01:20.8]}
30... Bxe4 {[%clk 0:00:53]} 31. Rc1 {[%clk 0:01:15.1]} 31... bxc5 {[%clk
0:00:51]} 32. bxc5 {[%clk 0:01:11.5]} 32... Kg7 {[%clk 0:00:39.6]} 33. f3 {[%clk
0:01:06.3]} 33... Bg6 {[%clk 0:00:38.5]} 34. Nb6 {[%clk 0:01:04]} 34... Rd3
{[%clk 0:00:36.9]} 35. Kf2 {[%clk 0:00:54.6]} 35... Kg8 {[%clk 0:00:26.5]} 36.
Ke2 {[%clk 0:00:44.4]} 36... Rd8 {[%clk 0:00:23.5]} 37. Ra1 {[%clk 0:00:39.9]}
37... Bf6 {[%clk 0:00:22.1]} 38. Ra7 {[%clk 0:00:25]} 38... Kg7 {[%clk
0:00:19.6]} 39. Nd7 {[%clk 0:00:22.9]} 39... Be7 {[%clk 0:00:17.1]} 40. Nxe5
{[%clk 0:00:20.5]} 40... Bxc5 {[%clk 0:00:16.9]} 41. Ra5 {[%clk 0:00:14.1]}
41... Bxe3 {[%clk 0:00:15.5]} 42. Kxe3 {[%clk 0:00:10]} 42... Rd6 {[%clk
0:00:16.2]} 43. Rc5 {[%clk 0:00:09.8]} 43... Re6 {[%clk 0:00:16.2]} 44. Kd4
{[%clk 0:00:10.7]} 44... f6 {[%clk 0:00:11.7]} 45. Nxc6 {[%clk 0:00:11.5]} 45...
Be8 {[%clk 0:00:11.2]} 46. Nb4 {[%clk 0:00:10.8]} 46... Re2 {[%clk 0:00:08.6]}
47. Rc7+ {[%clk 0:00:09.2]} 47... Bf7 {[%clk 0:00:09.2]} 48. Nc6 {[%clk
0:00:03.6]} 48... Rd2+ {[%clk 0:00:09.6]} 49. Ke3 {[%clk 0:00:04.5]} 49... Rd6
{[%clk 0:00:09]} 50. Nd4 {[%clk 0:00:04]} 50... Rd8 {[%clk 0:00:07.4]} 51. Nf5+
{[%clk 0:00:05.9]} 51... Kg6 {[%clk 0:00:04.5]} 52. Ne7+ {[%clk 0:00:05.7]}
52... Kg7 {[%clk 0:00:05.4]} 53. Nf5+ {[%clk 0:00:06.4]} 53... Kg6 {[%clk
0:00:05.6]} 54. Ne7+ {[%clk 0:00:03.8]} 54... Kg7 {[%clk 0:00:05.9]} 55. Nf5+
{[%clk 0:00:05.7]} 1/2-1

[Event "Torneo Nuevo Centro. Jornada 8"]
[Site "Chess.com"]
[Date "2020.08.07"]
[Round "6"]
[White "Pedros Viudes, Santiago"]
[Black "Chofre Murcia, Adrián"]
[Result "1-0"]
[WhiteElo "1909"]
[BlackElo "1679"]
[TimeControl "180+2"]
[EndTime "11:38:29 PDT"]
[Termination "Victoria de ElGatoKamsky por abandono"]

1. d4 {[%clk 0:03:01.9]} 1... f5 {[%clk 0:02:59.8]} 2. Nc3 {[%clk 0:03:01.4]}
2... e6 {[%clk 0:03:00.7]} 3. Qd3 {[%clk 0:02:55.5]} 3... Nf6 {[%clk 0:03:00.1]}
4. Bg5 {[%clk 0:02:56.3]} 4... d5 {[%clk 0:02:56.4]} 5. O-O-O {[%clk 0:02:45.3]}
5... h6 {[%clk 0:02:53.2]} 6. Bxf6 {[%clk 0:02:45.5]} 6... Qxf6 {[%clk
0:02:53.2]} 7. f3 {[%clk 0:02:46.3]} 7... Bd6 {[%clk 0:02:52.2]} 8. e4 {[%clk
0:02:42.8]} 8... Bf4+ {[%clk 0:02:46.2]} 9. Kb1 {[%clk 0:02:43.1]} 9... c6
{[%clk 0:02:45.7]} 10. e5 {[%clk 0:02:41]} 10... Qf7 {[%clk 0:02:37.3]} 11. g4
{[%clk 0:02:11.5]} 11... fxg4 {[%clk 0:02:29.8]} 12. fxg4 {[%clk 0:02:13.4]}
12... Bg5 {[%clk 0:02:29.8]} 13. h4 {[%clk 0:02:07.8]} 13... Be7 {[%clk
0:02:29.4]} 14. Nge2 {[%clk 0:01:51.3]} 14... Bd7 {[%clk 0:02:26.8]} 15. Bg2
{[%clk 0:01:45]} 15... Kd8 {[%clk 0:02:10.4]} 16. Rdf1 {[%clk 0:01:45.9]} 16...
Qe8 {[%clk 0:02:10.2]} 17. Nf4 {[%clk 0:01:41.7]} 17... Rf8 {[%clk 0:02:05.1]}
18. Nh5 {[%clk 0:01:27.9]} 18... Rxf1+ {[%clk 0:01:53.8]} 19. Qxf1 {[%clk
0:01:10.9]} 19... g6 {[%clk 0:01:49.4]} 20. Nf6 {[%clk 0:01:10.6]} 20... Bxf6
{[%clk 0:01:46.8]} 21. exf6 {[%clk 0:01:12.5]} 21... Qf7 {[%clk 0:01:43.6]} 22.
Qf4 {[%clk 0:01:07.3]} 22... Na6 {[%clk 0:01:33.3]} 23. Rf1 {[%clk 0:00:58.3]}
23... c5 {[%clk 0:01:08.1]} 24. dxc5 {[%clk 0:00:50.5]} 24... Nxc5 {[%clk
0:01:07.2]} 25. Qxh6 {[%clk 0:00:50.7]} 25... Kc7 {[%clk 0:01:04.3]} 26. Qf4+
{[%clk 0:00:39.6]} 26... Kc6 {[%clk 0:00:55.8]} 27. g5 {[%clk 0:00:26.2]} 27...
Rh8 {[%clk 0:00:52.2]} 28. Bf3 {[%clk 0:00:26]} 28... Be8 {[%clk 0:00:46.6]} 29.
Qb4 {[%clk 0:00:22.6]} 29... Qc7 {[%clk 0:00:36]} 30. Nb5 {[%clk 0:00:19.1]}
30... Qb6 {[%clk 0:00:34]} 31. Nd4+ {[%clk 0:00:20]} 31... Kd6 {[%clk
0:00:32.7]} 32. Qxb6+ {[%clk 0:00:19.3]} 32... axb6 {[%clk 0:00:33.8]} 33. Rh1
{[%clk 0:00:20.5]} 33... e5 {[%clk 0:00:32.6]} 34. Ne2 {[%clk 0:00:19.6]} 34...
e4 {[%clk 0:00:30.8]} 35. Bg4 {[%clk 0:00:20.8]} 35... Bf7 {[%clk 0:00:31]} 36.
Ng3 {[%clk 0:00:21.5]} 36... Ke5 {[%clk 0:00:27.8]} 37. h5 {[%clk 0:00:22.2]}
37... gxh5 {[%clk 0:00:21.2]} 38. Bxh5 {[%clk 0:00:24.1]} 38... Bxh5 {[%clk
0:00:21.6]} 39. Rxh5 {[%clk 0:00:26]} 39... Rxh5 {[%clk 0:00:22.2]} 40. Nxh5
{[%clk 0:00:27.9]} 40... Ne6 {[%clk 0:00:22.6]} 41. g6 {[%clk 0:00:21.4]} 41...
e3 {[%clk 0:00:21.3]} 42. Kc1 {[%clk 0:00:22.2]} 42... Kf5 {[%clk 0:00:19]} 43.
g7 {[%clk 0:00:22]} 43... e2 {[%clk 0:00:17.3]} 44. Kd2 {[%clk 0:00:22.6]} 44...
Nd4 {[%clk 0:00:02.1]} 45. g8=Q {[%clk 0:00:20.2]} 45... Nf3+ {[%clk 0:00:03.3]}
46. Kxe2 {[%clk 0:00:21.2]} 46... Nd4+ {[%clk 0:00:04.6]} 47. Kd3 {[%clk
0:00:21.6]} 47... Ne6 {[%clk 0:00:04.6]} 48. f7 {[%clk 0:00:21]} 48... Nc5+
{[%clk 0:00:05.2]} 49. Ke2 {[%clk 0:00:21.5]} 49... Ne4 {[%clk 0:00:05.4]} 50.
f8=Q+ {[%clk 0:00:21]} 50... Ke5 {[%clk 0:00:06.6]} 51. Qe7+ {[%clk 0:00:17.8]}
51... Kd4 {[%clk 0:00:07.1]} 52. Qgg7+ {[%clk 0:00:18.6]} 52... Kc4 {[%clk
0:00:07.8]} 53. Qxe4+ {[%clk 0:00:19.2]} 53... dxe4 {[%clk 0:00:08.7]} 54. Qc3+
{[%clk 0:00:20.1]} 54... Kd5 {[%clk 0:00:09.9]} 55. Nf4+ {[%clk 0:00:20.1]}
55... Kd6 {[%clk 0:00:09.6]} 56. Ke3 {[%clk 0:00:22]} 56... Ke7 {[%clk 0:00:10]}
57. Kxe4 {[%clk 0:00:23.9]} 57... Kf7 {[%clk 0:00:10.5]} 58. Qe5 {[%clk
0:00:21.4]} 58... Kf8 {[%clk 0:00:11.5]} 59. Qc7 {[%clk 0:00:21.4]} 59... Kg8
{[%clk 0:00:12.7]} 60. Kf5 {[%clk 0:00:22.6]} 1

[Event "Torneo Nuevo Centro. Jornada 8"]
[Site "Chess.com"]
[Date "2020.08.07"]
[Round "6"]
[White "Aymerich Rosell, Pablo"]
[Black "Gil López, Alejandro"]
[Result "0-1"]
[WhiteElo "1954"]
[BlackElo "2213"]
[TimeControl "180+2"]
[EndTime "11:38:37 PDT"]
[Termination "Victoria de AglVal0313 por abandono"]

1. e4 {[%clk 0:03:01.9]} 1... c5 {[%clk 0:03:01]} 2. Nf3 {[%clk 0:03:02.5]} 2...
g6 {[%clk 0:03:02]} 3. c3 {[%clk 0:03:00.9]} 3... Bg7 {[%clk 0:03:02.6]} 4. d4
{[%clk 0:03:01.8]} 4... cxd4 {[%clk 0:03:03.2]} 5. cxd4 {[%clk 0:03:02.9]} 5...
Nc6 {[%clk 0:03:02.6]} 6. d5 {[%clk 0:02:57.9]} 6... Ne5 {[%clk 0:03:03]} 7.
Nxe5 {[%clk 0:02:56.8]} 7... Bxe5 {[%clk 0:03:04.9]} 8. Nc3 {[%clk 0:02:57.1]}
8... d6 {[%clk 0:03:01.8]} 9. f4 {[%clk 0:02:57]} 9... Bg7 {[%clk 0:03:01.6]}
10. Bd3 {[%clk 0:02:57.2]} 10... Bd7 {[%clk 0:03:02.2]} 11. O-O {[%clk
0:02:57.3]} 11... Nf6 {[%clk 0:03:02.9]} 12. e5 {[%clk 0:02:47.4]} 12... Ng8
{[%clk 0:02:33.5]} 13. exd6 {[%clk 0:02:32]} 13... exd6 {[%clk 0:02:35.4]} 14.
Re1+ {[%clk 0:02:32.6]} 14... Ne7 {[%clk 0:02:31.2]} 15. f5 {[%clk 0:02:18.6]}
15... O-O {[%clk 0:02:30]} 16. fxg6 {[%clk 0:02:00.7]} 16... fxg6 {[%clk
0:02:31.9]} 17. Bg5 {[%clk 0:01:57.1]} 17... Bf6 {[%clk 0:02:20.6]} 18. Bxf6
{[%clk 0:01:53.5]} 18... Rxf6 {[%clk 0:02:22.5]} 19. Ne4 {[%clk 0:01:51]} 19...
Rf7 {[%clk 0:02:18.3]} 20. Ng5 {[%clk 0:01:50.5]} 20... Rf8 {[%clk 0:02:16.1]}
21. Kh1 {[%clk 0:01:31.4]} 21... Bf5 {[%clk 0:02:08.5]} 22. Ne6 {[%clk
0:01:30.1]} 22... Bxe6 {[%clk 0:02:05.8]} 23. dxe6 {[%clk 0:01:23.1]} 23... Rc8
{[%clk 0:02:04.8]} 24. Qb3 {[%clk 0:01:18.7]} 24... Qb6 {[%clk 0:02:02.5]} 25.
Be4 {[%clk 0:01:02.4]} 25... Qxb3 {[%clk 0:01:56.2]} 26. axb3 {[%clk 0:01:02.4]}
26... d5 {[%clk 0:01:57.8]} 27. Bf3 {[%clk 0:00:57.2]} 27... a6 {[%clk
0:01:59.1]} 28. Rac1 {[%clk 0:00:50]} 28... Kg7 {[%clk 0:01:57.2]} 29. h3 {[%clk
0:00:50.7]} 29... Kf6 {[%clk 0:01:54.2]} 30. Rcd1 {[%clk 0:00:47]} 30... Rcd8
{[%clk 0:01:50.9]} 31. Rd4 {[%clk 0:00:47.6]} 31... Rd6 {[%clk 0:01:49.7]} 32.
Rf4+ {[%clk 0:00:47.6]} 32... Kg7 {[%clk 0:01:46.7]} 33. Rb4 {[%clk 0:00:31.5]}
33... b5 {[%clk 0:01:42.7]} 34. Rd4 {[%clk 0:00:30.8]} 34... Rf6 {[%clk
0:01:42.4]} 35. Re5 {[%clk 0:00:28.1]} 35... Rfxe6 {[%clk 0:01:38.4]} 36. Rxe6
{[%clk 0:00:24.9]} 36... Rxe6 {[%clk 0:01:40.3]} 37. Rd2 {[%clk 0:00:13.4]}
37... Re5 {[%clk 0:01:29.8]} 38. b4 {[%clk 0:00:12.5]} 38... Kf6 {[%clk
0:01:30.8]} 39. Rc2 {[%clk 0:00:13]} 39... Kf5 {[%clk 0:00:39.9]} 40. Rc7 {[%clk
0:00:12.1]} 40... Kf4 {[%clk 0:00:24.3]} 41. Kh2 {[%clk 0:00:10.7]} 41... d4
{[%clk 0:00:22.8]} 42. Rd7 {[%clk 0:00:10]} 42... Ke3 {[%clk 0:00:23.6]} 43. Rd6
{[%clk 0:00:09.2]} 43... d3 {[%clk 0:00:23.8]} 44. Rxa6 {[%clk 0:00:10.1]} 44...
Nf5 {[%clk 0:00:20.4]} 45. Rb6 {[%clk 0:00:09]} 45... Nd4 {[%clk 0:00:21.3]} 46.
Bd1 {[%clk 0:00:08.5]} 46... Kd2 {[%clk 0:00:21.3]} 47. Bg4 {[%clk 0:00:08.5]}
47... h5 {[%clk 0:00:21.8]} 48. Bf3 {[%clk 0:00:05.8]} 48... Nxf3+ {[%clk
0:00:21.5]} 49. gxf3 {[%clk 0:00:07.1]} 49... Ke2 {[%clk 0:00:22.8]} 50. Rxg6
{[%clk 0:00:07.6]} 50... d2 {[%clk 0:00:23.1]} 51. Rd6 {[%clk 0:00:08.9]} 51...
d1=Q {[%clk 0:00:23]} 52. Rxd1 {[%clk 0:00:10.1]} 52... Kxd1 {[%clk 0:00:24.9]}
53. Kg3 {[%clk 0:00:11.4]} 53... Kc2 {[%clk 0:00:26]} 54. f4 {[%clk 0:00:12.6]}
54... Rf5 {[%clk 0:00:27.1]} 55. Kh4 {[%clk 0:00:11.9]} 55... Kxb2 {[%clk
0:00:27]} 56. Kg3 {[%clk 0:00:11.9]} 56... Kb3 {[%clk 0:00:27.7]} 57. Kf3 {[%clk
0:00:13.8]} 57... Kxb4 {[%clk 0:00:28.9]} 58. Ke4 {[%clk 0:00:15.7]} 58... Rf7
{[%clk 0:00:29.3]} 59. Ke5 {[%clk 0:00:16.3]} 59... Kc3 {[%clk 0:00:30.1]} 60.
f5 {[%clk 0:00:17.6]} 60... b4 {[%clk 0:00:30.4]} 61. Ke6 {[%clk 0:00:19]} 61...
Rf8 {[%clk 0:00:30.4]} 62. Ke7 {[%clk 0:00:20.3]} 62... Rxf5 {[%clk 0:00:29.6]}
63. Ke6 {[%clk 0:00:20.8]} 63... Rf3 {[%clk 0:00:30.3]} 64. h4 {[%clk
0:00:21.9]} 64... b3 {[%clk 0:00:31.3]} 0

[Event "Torneo Nuevo Centro. Jornada 8"]
[Site "Chess.com"]
[Date "2020.08.07"]
[Round "7"]
[White "Gil López, Alejandro"]
[Black "Perez Garcia, Jose Miguel"]
[Result "1/2-1/2"]
[WhiteElo "2209"]
[BlackElo "2040"]
[TimeControl "180+2"]
[EndTime "11:42:43 PDT"]
[Termination "Partida en tablas por mutuo acuerdo"]

1. e4 {[%clk 0:03:01.9]} 1... c6 {[%clk 0:02:41.2]} 2. Nc3 {[%clk 0:03:00]} 2...
d5 {[%clk 0:02:30.8]} 3. d4 {[%clk 0:03:00.9]} 3... dxe4 {[%clk 0:02:31.5]} 4.
Nxe4 {[%clk 0:03:02.8]} 4... Nf6 {[%clk 0:02:32.1]} 5. Ng3 {[%clk 0:03:03.5]}
5... g6 {[%clk 0:02:29.3]} 6. Nf3 {[%clk 0:03:02.9]} 6... Bg7 {[%clk 0:02:30.4]}
7. Bg5 {[%clk 0:03:01.9]} 7... O-O {[%clk 0:02:31.3]} 8. h4 {[%clk 0:03:01.8]}
8... Bg4 {[%clk 0:02:30.8]} 9. Be2 {[%clk 0:03:01.7]} 9... Nbd7 {[%clk
0:02:30.9]} 10. Qd2 {[%clk 0:02:59.1]} 10... h5 {[%clk 0:02:29.9]} 11. O-O-O
{[%clk 0:02:54.2]} 11... Bxf3 {[%clk 0:02:22.6]} 1/2-1

[Event "Torneo Nuevo Centro. Jornada 8"]
[Site "Chess.com"]
[Date "2020.08.07"]
[Round "7"]
[White "Donate Peris, Jose Manuel"]
[Black "Gómez Alonso, Óscar"]
[Result "0-1"]
[WhiteElo "1522"]
[BlackElo "1821"]
[TimeControl "180+2"]
[EndTime "11:43:48 PDT"]
[Termination "Victoria de osgo78 por abandono"]

1. d4 {[%clk 0:03:01.9]} 1... Nf6 {[%clk 0:03:00.2]} 2. c4 {[%clk 0:03:00.2]}
2... e6 {[%clk 0:03:00.8]} 3. Nc3 {[%clk 0:03:00.9]} 3... d5 {[%clk 0:03:01.9]}
4. cxd5 {[%clk 0:03:00.2]} 4... exd5 {[%clk 0:03:02.5]} 5. e3 {[%clk 0:02:55.5]}
5... c6 {[%clk 0:03:03.5]} 6. Nf3 {[%clk 0:02:54.8]} 6... Bd6 {[%clk 0:03:03.6]}
7. Be2 {[%clk 0:02:55.4]} 7... O-O {[%clk 0:03:03.9]} 8. h3 {[%clk 0:02:56.3]}
8... Bf5 {[%clk 0:03:03.5]} 9. O-O {[%clk 0:02:54.5]} 9... Nbd7 {[%clk
0:03:02.4]} 10. Nh4 {[%clk 0:02:52.9]} 10... Be6 {[%clk 0:03:02.5]} 11. Bd3
{[%clk 0:02:47.6]} 11... Bb8 {[%clk 0:03:02.5]} 12. e4 {[%clk 0:02:43.2]} 12...
dxe4 {[%clk 0:03:02.1]} 13. Nxe4 {[%clk 0:02:40.8]} 13... Nxe4 {[%clk 0:03:03]}
14. Bxe4 {[%clk 0:02:39.7]} 14... Qxh4 {[%clk 0:03:03.3]} 15. Bf3 {[%clk
0:02:32.9]} 15... Nf6 {[%clk 0:03:00.1]} 16. Re1 {[%clk 0:02:31.1]} 16... Bd5
{[%clk 0:02:55.7]} 17. Be3 {[%clk 0:02:24.8]} 17... Bd6 {[%clk 0:02:45]} 18. a3
{[%clk 0:02:22.4]} 18... Rfe8 {[%clk 0:02:44.9]} 19. Qd2 {[%clk 0:02:16.2]}
19... Bxf3 {[%clk 0:02:28.4]} 0

[Event "Torneo Nuevo Centro. Jornada 8"]
[Site "Chess.com"]
[Date "2020.08.07"]
[Round "7"]
[White "Chofre Murcia, Adrián"]
[Black "Kovacevic, Slobodan"]
[Result "0-1"]
[WhiteElo "1677"]
[BlackElo "2215"]
[TimeControl "180+2"]
[EndTime "11:44:24 PDT"]
[Termination "Victoria de nikko110 por abandono"]

1. e4 {[%clk 0:03:01.9]} 1... c5 {[%clk 0:02:59]} 2. Nc3 {[%clk 0:03:02.4]} 2...
e6 {[%clk 0:02:58.5]} 3. f4 {[%clk 0:03:03.5]} 3... Qc7 {[%clk 0:02:55]} 4. Nf3
{[%clk 0:03:03.6]} 4... Qxf4 {[%clk 0:02:54.3]} 5. d4 {[%clk 0:03:01.7]} 5...
Qc7 {[%clk 0:02:54.2]} 6. d5 {[%clk 0:03:01]} 6... a6 {[%clk 0:02:51.3]} 7. e5
{[%clk 0:03:01]} 7... b5 {[%clk 0:02:48.9]} 8. d6 {[%clk 0:03:02]} 8... Qb6
{[%clk 0:02:45.2]} 9. a4 {[%clk 0:02:59.1]} 9... Bb7 {[%clk 0:02:42.8]} 10. a5
{[%clk 0:02:59.6]} 10... Qd8 {[%clk 0:02:36.7]} 11. Bg5 {[%clk 0:02:59.7]} 11...
f6 {[%clk 0:02:35.5]} 12. Bf4 {[%clk 0:02:57.9]} 12... Nc6 {[%clk 0:02:33.8]}
13. Bxb5 {[%clk 0:02:47.8]} 13... axb5 {[%clk 0:02:29.5]} 14. Nxb5 {[%clk
0:02:48.9]} 14... Rxa5 {[%clk 0:02:27.8]} 15. Nc7+ {[%clk 0:02:49.6]} 15... Kf7
{[%clk 0:02:26.2]} 16. Bd2 {[%clk 0:02:41.1]} 16... Rxa1 {[%clk 0:02:22]} 17.
Qxa1 {[%clk 0:02:40.1]} 17... Nxe5 {[%clk 0:02:17.2]} 18. Nxe5+ {[%clk
0:02:38.1]} 18... fxe5 {[%clk 0:02:16]} 19. Rf1+ {[%clk 0:02:38.2]} 19... Nf6
{[%clk 0:02:14.6]} 20. Qd1 {[%clk 0:02:35.9]} 20... Bxd6 {[%clk 0:02:05.6]} 21.
Rxf6+ {[%clk 0:02:36.8]} 21... Qxf6 {[%clk 0:02:01]} 22. Qh5+ {[%clk 0:02:34.8]}
22... g6 {[%clk 0:01:58.8]} 23. Qe2 {[%clk 0:02:30]} 23... Bxc7 {[%clk
0:01:56.8]} 24. Bg5 {[%clk 0:02:30.8]} 0

[Event "Torneo Nuevo Centro. Jornada 8"]
[Site "Chess.com"]
[Date "2020.08.07"]
[Round "7"]
[White "Rodriguez Rodriguez, Joan David "]
[Black "Blanco Solaz, Ramón"]
[Result "0-1"]
[WhiteElo "1714"]
[BlackElo "1952"]
[TimeControl "180+2"]
[EndTime "11:44:55 PDT"]
[Termination "Victoria de Rbs77 por abandono"]

1. d4 {[%clk 0:03:01.9]} 1... c5 {[%clk 0:02:59.5]} 2. d5 {[%clk 0:03:02.8]}
2... e6 {[%clk 0:02:59.5]} 3. c4 {[%clk 0:03:03.9]} 3... exd5 {[%clk 0:03:00.3]}
4. cxd5 {[%clk 0:03:05.8]} 4... d6 {[%clk 0:03:00.4]} 5. Nc3 {[%clk 0:03:06]}
5... a6 {[%clk 0:03:01.6]} 6. a4 {[%clk 0:02:59.1]} 6... Nf6 {[%clk 0:03:01.6]}
7. e4 {[%clk 0:02:59.4]} 7... g6 {[%clk 0:03:02.6]} 8. Bd3 {[%clk 0:02:59.5]}
8... Bg7 {[%clk 0:03:04.1]} 9. h3 {[%clk 0:03:00.5]} 9... O-O {[%clk 0:03:05.5]}
10. f4 {[%clk 0:03:00.4]} 10... Re8 {[%clk 0:03:06.8]} 11. Nf3 {[%clk
0:02:57.1]} 11... Qc7 {[%clk 0:03:08.3]} 12. O-O {[%clk 0:02:57.8]} 12... Nbd7
{[%clk 0:03:08.6]} 13. Re1 {[%clk 0:02:58.3]} 13... c4 {[%clk 0:03:09.2]} 14.
Bc2 {[%clk 0:02:58.9]} 14... Nc5 {[%clk 0:03:10.3]} 15. e5 {[%clk 0:02:52]}
15... dxe5 {[%clk 0:02:56.2]} 16. fxe5 {[%clk 0:02:47.3]} 16... Nfd7 {[%clk
0:02:56.5]} 17. Bf4 {[%clk 0:01:30.6]} 17... Qb6 {[%clk 0:02:54.9]} 18. d6
{[%clk 0:01:07]} 18... Nd3+ {[%clk 0:02:54]} 19. Kh2 {[%clk 0:01:04.3]} 19...
Nxf4 {[%clk 0:02:54.4]} 20. g3 {[%clk 0:00:56.1]} 20... Qf2+ {[%clk 0:02:53.6]}
0

[Event "Torneo Nuevo Centro. Jornada 8"]
[Site "Chess.com"]
[Date "2020.08.07"]
[Round "7"]
[White "Fente Fernandez, Jose Ignacio"]
[Black "Conon, Catalin"]
[Result "0-1"]
[WhiteElo "1460"]
[BlackElo "1915"]
[TimeControl "180+2"]
[EndTime "11:45:40 PDT"]
[Termination "Victoria de CatalinConon por abandono"]

1. e4 {[%clk 0:03:01.9]} 1... c5 {[%clk 0:02:58.5]} 2. Nf3 {[%clk 0:03:02.4]}
2... Nc6 {[%clk 0:02:58.1]} 3. d4 {[%clk 0:03:03.2]} 3... cxd4 {[%clk 0:03:00]}
4. Nxd4 {[%clk 0:03:04.9]} 4... e5 {[%clk 0:03:00.4]} 5. Nb5 {[%clk 0:03:05.6]}
5... a6 {[%clk 0:03:01.2]} 6. Nd6+ {[%clk 0:03:02.4]} 6... Bxd6 {[%clk
0:03:01.8]} 7. Qxd6 {[%clk 0:03:04.3]} 7... Qf6 {[%clk 0:03:03.4]} 8. Qd3 {[%clk
0:02:46.1]} 8... Qg6 {[%clk 0:03:00.7]} 9. Nc3 {[%clk 0:02:45.1]} 9... Nb4
{[%clk 0:03:01.7]} 10. Qe2 {[%clk 0:02:26.1]} 10... Nf6 {[%clk 0:02:59.2]} 11.
a3 {[%clk 0:02:26.5]} 11... Nc6 {[%clk 0:02:59.6]} 12. f3 {[%clk 0:02:26.6]}
12... d5 {[%clk 0:03:00.5]} 13. exd5 {[%clk 0:02:22.9]} 13... Ne7 {[%clk
0:02:57.6]} 14. Qxe5 {[%clk 0:02:17.4]} 14... O-O {[%clk 0:02:57.9]} 15. Bd3
{[%clk 0:02:14.5]} 15... Qxg2 {[%clk 0:02:58]} 16. Rf1 {[%clk 0:02:08.8]} 16...
Ng6 {[%clk 0:02:57.8]} 17. Qd4 {[%clk 0:01:57.3]} 17... Re8+ {[%clk 0:02:57.8]}
18. Be3 {[%clk 0:01:57.8]} 18... Nh4 {[%clk 0:02:33.7]} 19. O-O-O {[%clk
0:01:53.6]} 19... Nxf3 {[%clk 0:02:33]} 20. Qf4 {[%clk 0:01:16.2]} 20... Bg4
{[%clk 0:02:17.7]} 21. d6 {[%clk 0:00:56.8]} 21... Nh5 {[%clk 0:02:17.5]} 22.
Qg3 {[%clk 0:00:43.7]} 0

[Event "Torneo Nuevo Centro. Jornada 8"]
[Site "Chess.com"]
[Date "2020.08.07"]
[Round "7"]
[White "Bendayán Claros, Aaron"]
[Black "Pedros Viudes, Santiago"]
[Result "0-1"]
[WhiteElo "2019"]
[BlackElo "1921"]
[TimeControl "180+2"]
[EndTime "11:47:14 PDT"]
[Termination "Victoria de ElGatoKamsky por jaque mate"]

1. d4 {[%clk 0:03:01.9]} 1... Nf6 {[%clk 0:03:00.6]} 2. Bg5 {[%clk 0:02:42.2]}
2... d5 {[%clk 0:03:00.9]} 3. e3 {[%clk 0:02:38.3]} 3... c5 {[%clk 0:03:01.4]}
4. c3 {[%clk 0:02:39.2]} 4... Qb6 {[%clk 0:02:59.7]} 5. Qb3 {[%clk 0:02:37.6]}
5... c4 {[%clk 0:03:00]} 6. Qxb6 {[%clk 0:02:38.1]} 6... axb6 {[%clk 0:03:01.9]}
7. Nd2 {[%clk 0:02:38]} 7... b5 {[%clk 0:02:55.5]} 8. a3 {[%clk 0:02:38.8]} 8...
Bf5 {[%clk 0:02:53]} 9. Ngf3 {[%clk 0:02:35.7]} 9... h6 {[%clk 0:02:41.1]} 10.
Bf4 {[%clk 0:02:33.5]} 10... Nbd7 {[%clk 0:02:35.4]} 11. h3 {[%clk 0:02:34.7]}
11... Nb6 {[%clk 0:02:36.3]} 12. g4 {[%clk 0:02:33.9]} 12... Bh7 {[%clk
0:02:35.2]} 13. Kd1 {[%clk 0:01:35.2]} 13... Na4 {[%clk 0:02:06.5]} 14. Kc1
{[%clk 0:01:34.3]} 14... e6 {[%clk 0:02:07]} 15. Be2 {[%clk 0:01:32.7]} 15...
Ne4 {[%clk 0:01:56]} 16. Rf1 {[%clk 0:01:32]} 16... Nexc3 {[%clk 0:01:42.9]} 17.
bxc3 {[%clk 0:01:30.8]} 17... Nxc3 {[%clk 0:01:44.8]} 18. Re1 {[%clk 0:00:04.1]}
18... Rxa3 {[%clk 0:01:13.4]} 19. Rxa3 {[%clk 0:00:02.7]} 19... Bxa3# {[%clk
0:01:15.3]} 0